[Event "XXI Torredembarra Open 2019"]
[Site "Torredembarra"]
[Date "2019.07.07"]
[Round "2.9"]
[White "Galimany Rovira, Xavier"]
[Black "Zhukov, Anton"]
[Result "1-0"]
[ECO "A22"]
[WhiteElo "2086"]
[BlackElo "2087"]
[Annotator "NA"]
[PlyCount "75"]
[EventDate "2019.07.06"]
[EventType "swiss"]
[EventCountry "ESP"]
[SourceTitle "playchess.com"]
[Source "ChessBase"]
[SourceQuality "1"]
[TimeControl "5400+30"]

1. c4 {[%emt 0:00:00]} e5 {[%emt 0:01:57]} 2. g3 {[%emt 0:00:00]} Nf6 {[%emt 0:00:01]} 3. Bg2 {[%emt 0:00:11]} Be7 {[%emt 0:01:24]} 4. Nc3 {[%emt 0:01:26]} d6 {[%emt 0:01:06]} 5. d3 {[%emt 0:01:32]} Nbd7 {[%emt 0:00:19]} 6. e4 {[%emt 0:00:54]} Nf8 {[%emt 0:00:08]} 7. Nge2 {[%emt 0:01:36]} Ng6 {[%emt 0:01:16]} 8. h3 {[%emt 0:02:33]} Bd7 {[%emt 0:02:32]} 9. Be3 {[%emt 0:01:41]} c6 {[%emt 0:04:13]} 10. Qd2 {[%emt 0:04:34]} Qa5 {[%emt 0:02:29]} 11. a3 {[%emt 0:06:24]} Nf8 {[%emt 0:07:33]} 12. b4 {[%emt 0:02:53]} Qc7 {[%emt 0:00:34]} 13. O-O {[%emt 0:01:39]} Ne6 {[%emt 0:04:26]} 14. f4 {[%emt 0:06:31]} exf4 {[%emt 0:00:48]} 15. gxf4 {[%emt 0:02:38]} h6 {[%emt 0:07:00]} 16. d4 {[%emt 0:02:25]} b6 {[%emt 0:07:08]} 17. Rac1 {[%emt 0:12:21]} Qc8 {[%emt 0:13:43]} 18. Kh2 {[%emt 0:06:11]} Qa6 {[%emt 0:00:30]} 19. e5 {[%emt 0:02:28]} Nh7 {[%emt 0:01:38]} 20. d5 {[%emt 0:01:48]} cxd5 {[%emt 0:04:32]} 21. Nxd5 {[%emt 0:00:26]} Bd8 {[%emt 0:05:25]} 22. Nf6+ {[%emt 0:09:39]} Bxf6 {[%emt 0:02:21]} 23. exf6 {[%emt 0:05:51]} Rd8 {[%emt 0:05:07]} 24. f5 {[%emt 0:00:32]} Nxf6 {[%emt 0:02:59]} 25. fxe6 {[%emt 0:00:10]} Bxe6 {[%emt 0:00:27]} 26. Bd4 {[%emt 0:02:53]} Nh5 {[%emt 0:05:36]} 27. Bc6+ {[%emt 0:03:18]} Ke7 {[%emt 0:01:26]} 28. Nf4 {[%emt 0:01:21]} Nxf4 {[%emt 0:01:27]} 29. Qxf4 {[%emt 0:00:11]} Qxa3 {[%emt 0:01:35]} 30. Bxg7 {[%emt 0:01:08]} Qxh3+ {[%emt 0:01:27]} 31. Kg1 {[%emt 0:00:05]} f5 {[%emt 0:01:05]} 32. Rf3 {[%emt 0:02:52]} Qg4+ {[%emt 0:01:45]} 33. Qxg4 {[%emt 0:00:37]} fxg4 {[%emt 0:00:02]} 34. Rff1 {[%emt 0:02:32]} Rc8 {[%emt 0:05:27]} 35. Bf6+ {[%emt 0:00:16]} Kf7 {[%emt 0:00:01]} 36. Bxh8+ {[%emt 0:00:11]} Kg8 {[%emt 0:00:12]} 37. Bd5 {[%emt 0:00:37]} Bxd5 {[%emt 0:00:19]} 38. cxd5 {[%emt 0:00:06]} 1-0

[Event "XXI Torredembarra Open 2019"]
[Site "Torredembarra"]
[Date "2019.07.08"]
[Round "3.1"]
[White "Farran Martos, Francesc X."]
[Black "Fernandez Alonso, Miguel Angel"]
[Result "1-0"]
[ECO "B30"]
[WhiteElo "2432"]
[BlackElo "2060"]
[Annotator "NA"]
[PlyCount "52"]
[EventDate "2019.07.06"]
[EventType "swiss"]
[EventCountry "ESP"]
[SourceTitle "playchess.com"]
[Source "ChessBase"]
[SourceQuality "1"]
[TimeControl "5400+30"]

1. e4 {[%emt 0:00:00]} c5 {[%emt 0:00:00]} 2. Nf3 {[%emt 0:00:00]} Nc6 {[%emt 0:00:00]} 3. Bb5 {[%emt 0:00:47]} e6 {[%emt 0:00:25]} 4. O-O {[%emt 0:01:13]} Nge7 {[%emt 0:00:06]} 5. Re1 {[%emt 0:02:16]} a6 {[%emt 0:00:06]} 6. Bf1 {[%emt 0:01:05]} d6 {[%emt 0:00:37]} 7. c3 {[%emt 0:02:24]} Ng6 {[%emt 0:00:59]} 8. d4 {[%emt 0:02:59]} Be7 {[%emt 0:00:10]} 9. a4 {[%emt 0:02:59]} O-O {[%emt 0:00:33]} 10. Na3 {[%emt 0:02:36]} e5 {[%emt 0:09:37]} 11. h3 {[%emt 0:06:02]} Nh4 {[%emt 0:00:00]} 12. Nxh4 {[%emt 0:07:27]} Bxh4 {[%emt 0:00:00]} 13. dxc5 {[%emt 0:01:33]} dxc5 {[%emt 0:00:03]} 14. Be3 {[%emt 0:13:30]} Be7 {[%emt 0:12:53]} 15. Bc4 {[%emt 0:02:16]} Qc7 {[%emt 0:00:00]} 16. Bd5 {[%emt 0:04:44]} Bd7 {[%emt 0:00:00]} 17. Qh5 {[%emt 0:10:06]} Nd8 {[%emt 0:03:46]} 18. Nc4 {[%emt 0:00:00]} Bf6 {[%emt 0:07:49]} 19. a5 {[%emt 0:00:05]} Ne6 {[%emt 0:00:00]} 20. Nb6 {[%emt 0:05:45]} Rad8 {[%emt 0:00:00]} 21. Rad1 {[%emt 0:04:47]} Rfe8 {[%emt 0:04:58]} 22. Rd2 {[%emt 0:08:09]} Bc6 {[%emt 0:07:19]} 23. g3 {[%emt 0:02:23]} Qe7 {[%emt 0:08:35]} 24. Bxc6 {[%emt 0:02:36]} bxc6 {[%emt 0:00:30]} 25. Red1 {[%emt 0:00:30]} g6 {[%emt 0:00:30]} 26. Qe2 {[%emt 0:00:30]} Bg5 {[%emt 0:00:30]} 1-0

[Event "XXI Torredembarra Open 2019"]
[Site "Torredembarra"]
[Date "2019.07.08"]
[Round "3.2"]
[White "Argerich Farras, Jose"]
[Black "Dardha, Daniel"]
[Result "0-1"]
[ECO "A30"]
[WhiteElo "2014"]
[BlackElo "2420"]
[Annotator "NA"]
[PlyCount "102"]
[EventDate "2019.07.06"]
[EventType "swiss"]
[EventCountry "ESP"]
[SourceTitle "playchess.com"]
[Source "ChessBase"]
[SourceQuality "1"]
[TimeControl "5400+30"]

1. Nf3 {[%emt 0:00:00]} Nf6 {[%emt 0:06:01]} 2. c4 {[%emt 0:00:58]} c5 {[%emt 0:00:37]} 3. Nc3 {[%emt 0:01:06]} b6 {[%emt 0:00:37]} 4. g3 {[%emt 0:03:28]} Bb7 {[%emt 0:00:06]} 5. Bg2 {[%emt 0:00:06]} g6 {[%emt 0:00:57]} 6. O-O {[%emt 0:02:18]} Bg7 {[%emt 0:00:08]} 7. d4 {[%emt 0:09:11]} cxd4 {[%emt 0:00:37]} 8. Nxd4 {[%emt 0:01:52]} Bxg2 {[%emt 0:00:13]} 9. Kxg2 {[%emt 0:00:01]} O-O {[%emt 0:00:16]} 10. Qd3 {[%emt 0:10:32]} Qc8 {[%emt 0:01:18]} 11. Nd5 {[%emt 0:14:59]} Qb7 {[%emt 0:03:47]} 12. e4 {[%emt 0:00:47]} e6 {[%emt 0:01:57]} 13. Nxf6+ {[%emt 0:17:44]} Bxf6 {[%emt 0:00:03]} 14. Nf3 {[%emt 0:02:36]} Na6 {[%emt 0:05:25]} 15. Qe2 {[%emt 0:00:30]} d6 {[%emt 0:01:21]} 16. Bf4 {[%emt 0:03:05]} Rfd8 {[%emt 0:00:43]} 17. Rad1 {[%emt 0:03:40]} Nc5 {[%emt 0:01:30]} 18. e5 {[%emt 0:04:29]} dxe5 {[%emt 0:00:27]} 19. Bxe5 {[%emt 0:01:52]} Bxe5 {[%emt 0:03:32]} 20. Qxe5 {[%emt 0:00:00]} Rd3 {[%emt 0:09:20]} 21. Rxd3 {[%emt 0:00:04]} Nxd3 {[%emt 0:04:30]} 22. Qd4 {[%emt 0:04:19]} Nb4 {[%emt 0:04:18]} 23. Qc3 {[%emt 0:03:16]} Nc6 {[%emt 0:01:00]} 24. Rd1 {[%emt 0:00:27]} e5 {[%emt 0:03:09]} 25. Kg1 {[%emt 0:01:25]} Re8 {[%emt 0:00:45]} 26. Re1 {[%emt 0:01:20]} Qe7 {[%emt 0:02:24]} 27. Qe3 {[%emt 0:03:57]} f5 {[%emt 0:03:04]} 28. Rd1 {[%emt 0:00:00]} e4 {[%emt 0:00:22]} 29. Ne1 {[%emt 0:02:57]} Ne5 {[%emt 0:01:10]} 30. Rd5 {[%emt 0:01:00]} Nxc4 {[%emt 0:02:44]} 31. Qd4 {[%emt 0:01:05]} Ne5 {[%emt 0:01:17]} 32. Kg2 {[%emt 0:00:41]} Nc6 {[%emt 0:02:45]} 33. Qd1 {[%emt 0:02:16]} Ne5 {[%emt 0:03:47]} 34. Qb3 {[%emt 0:00:44]} Qf7 {[%emt 0:00:58]} 35. Nc2 {[%emt 0:07:02]} Nd3 {[%emt 0:00:59]} 36. Qb5 {[%emt 0:08:06]} a6 {[%emt 0:00:52]} 37. Qc6 {[%emt 0:00:00]} f4 {[%emt 0:14:19]} 38. Rd7 {[%emt 0:00:00]} f3+ {[%emt 0:00:13]} 39. Kf1 {[%emt 0:00:43]} Ne5 {[%emt 0:03:15]} 40. Rxf7 {[%emt 0:00:00]} Nxc6 {[%emt 0:00:05]} 41. Rc7 {[%emt 0:00:00]} Ne5 {[%emt 0:00:49]} 42. Ne3 {[%emt 0:00:00]} Rd8 {[%emt 0:01:03]} 43. Rc2 {[%emt 0:00:00]} Ng4 {[%emt 0:02:42]} 44. Rc3 {[%emt 0:00:00]} Nxe3+ {[%emt 0:00:23]} 45. Rxe3 {[%emt 0:00:00]} Rd1+ {[%emt 0:00:13]} 46. Re1 {[%emt 0:00:00]} Rxe1+ {[%emt 0:00:07]} 47. Kxe1 {[%emt 0:00:00]} Kf7 {[%emt 0:00:04]} 48. Kd2 {[%emt 0:00:00]} Ke6 {[%emt 0:00:06]} 49. Ke3 {[%emt 0:00:00]} Ke5 {[%emt 0:00:08]} 50. h3 {[%emt 0:00:00]} g5 {[%emt 0:00:08]} 51. h4 {[%emt 0:00:00]} h6 {[%emt 0:00:07]} 0-1

[Event "XXI Torredembarra Open 2019"]
[Site "Torredembarra"]
[Date "2019.07.08"]
[Round "3.3"]
[White "Lacasa Diaz, Jose Antonio"]
[Black "Ventos Navarro, Llibert"]
[Result "1/2-1/2"]
[ECO "A13"]
[WhiteElo "2391"]
[BlackElo "2013"]
[Annotator "NA"]
[PlyCount "56"]
[EventDate "2019.07.06"]
[EventType "swiss"]
[EventCountry "ESP"]
[SourceTitle "playchess.com"]
[Source "ChessBase"]
[SourceQuality "1"]
[TimeControl "5400+30"]

1. Nf3 {[%emt 0:04:33]} Nf6 {[%emt 0:00:11]} 2. b3 {[%emt 0:00:08]} c5 {[%emt 0:01:01]} 3. Bb2 {[%emt 0:00:17]} e6 {[%emt 0:00:12]} 4. c4 {[%emt 0:02:34]} d5 {[%emt 0:00:18]} 5. cxd5 {[%emt 0:00:29]} exd5 {[%emt 0:00:33]} 6. g3 {[%emt 0:00:09]} Nc6 {[%emt 0:02:29]} 7. Bg2 {[%emt 0:00:59]} Be7 {[%emt 0:05:10]} 8. O-O {[%emt 0:00:13]} Bf5 {[%emt 0:00:40]} 9. d4 {[%emt 0:00:51]} cxd4 {[%emt 0:10:05]} 10. Nxd4 {[%emt 0:01:14]} Nxd4 {[%emt 0:00:17]} 11. Qxd4 {[%emt 0:03:11]} Qd7 {[%emt 0:03:27]} 12. Nc3 {[%emt 0:01:27]} Bh3 {[%emt 0:04:26]} 13. Rfd1 {[%emt 0:11:18]} Bxg2 {[%emt 0:00:18]} 14. Kxg2 {[%emt 0:00:06]} Rd8 {[%emt 0:00:27]} 15. Qxa7 {[%emt 0:00:38]} d4 {[%emt 0:00:11]} 16. Qa4 {[%emt 0:00:58]} Qxa4 {[%emt 0:00:54]} 17. Nxa4 {[%emt 0:00:17]} b5 {[%emt 0:00:02]} 18. Rxd4 {[%emt 0:01:39]} Rxd4 {[%emt 0:07:40]} 19. Bxd4 {[%emt 0:00:10]} bxa4 {[%emt 0:00:04]} 20. bxa4 {[%emt 0:00:15]} Kd7 {[%emt 0:01:07]} 21. Rd1 {[%emt 0:02:49]} Ke6 {[%emt 0:00:25]} 22. Rd3 {[%emt 0:04:58]} Ra8 {[%emt 0:08:13]} 23. Re3+ {[%emt 0:00:32]} Kd7 {[%emt 0:00:45]} 24. Rd3 {[%emt 0:01:14]} Ke8 {[%emt 0:00:02]} 25. Re3 {[%emt 0:00:48]} Rxa4 {[%emt 0:00:57]} 26. Bxf6 {[%emt 0:00:28]} gxf6 {[%emt 0:00:01]} 27. Rb3 {[%emt 0:01:13]} Kf8 {[%emt 0:00:43]} 28. Rb2 {[%emt 0:00:25]} Kg7 {[%emt 0:01:20]} 1/2-1/2

[Event "XXI Torredembarra Open 2019"]
[Site "Torredembarra"]
[Date "2019.07.08"]
[Round "3.4"]
[White "Borrellas Comellas, Josep"]
[Black "Djuric, Stefan"]
[Result "0-1"]
[ECO "C01"]
[WhiteElo "1935"]
[BlackElo "2368"]
[Annotator "RC"]
[PlyCount "48"]
[EventDate "2019.07.06"]
[EventType "swiss"]
[EventCountry "ESP"]
[SourceTitle "playchess.com"]
[Source "ChessBase"]
[SourceQuality "1"]
[TimeControl "5400+30"]

1. e4 {[%emt 0:59:31]} e6 {[%emt 0:00:13]} 2. d4 {[%emt 0:00:21]} d5 {[%emt 0:00:04]} 3. exd5 {[%emt 0:01:21]} exd5 {[%emt 0:00:02]} 4. Bf4 {[%emt 0:01:29]} Nf6 {[%emt 0:00:51]} 5. Nf3 {[%emt 0:00:21]} Bd6 {[%emt 0:02:10]} 6. Bxd6 {[%emt 0:03:32]} Qxd6 {[%emt 0:00:01]} 7. c3 {[%emt 0:00:20]} O-O {[%emt 0:02:23]} 8. Be2 {[%emt 0:00:26]} Qb6 {[%emt 0:01:59]} 9. Qb3 {[%emt 0:00:29]} Qe6 {[%emt 0:05:34]} 10. Qd1 {[%emt 0:05:20]} Re8 {[%emt 0:00:32]} 11. Kf1 {[%emt 0:02:16]} Nbd7 {[%emt 0:02:30]} 12. Nbd2 {[%emt 0:02:20]} c5 {[%emt 0:00:33]} 13. dxc5 {[%emt 0:02:04]} Nxc5 {[%emt 0:00:04]} 14. Nd4 {[%emt 0:01:34]} Qb6 {[%emt 0:01:20]} 15. Qc2 {[%emt 0:01:59]} Bd7 {[%emt 0:00:14]} 16. h3 {[%emt 0:02:11]} Rac8 {[%emt 0:00:27]} 17. a4 {[%emt 0:05:14]} Nxa4 {[%emt 0:11:35]} 18. Rxa4 {[%emt 0:00:59]} Bxa4 {[%emt 0:00:03]} 19. Qxa4 {[%emt 0:00:22]} Qxb2 {[%emt 0:00:03]} 20. N2f3 {[%emt 0:17:34]} Rxc3 {[%emt 0:04:54]} 21. Kg1 {[%emt 0:09:51]} Ra3 {[%emt 0:05:07]} 22. Qb5 Ra1+ {[%emt 0:05:22]} 23. Bf1 Qxb5 24. Nxb5 Ne4 {[%emt 0:01:25]} 0-1

[Event "XXI Torredembarra Open 2019"]
[Site "Torredembarra"]
[Date "2019.07.08"]
[Round "3.5"]
[White "Pogorelov, Ruslan"]
[Black "Barberans Sola, Sebastia"]
[Result "1-0"]
[ECO "D02"]
[WhiteElo "2347"]
[BlackElo "1887"]
[Annotator "NA"]
[PlyCount "42"]
[EventDate "2019.07.06"]
[EventType "swiss"]
[EventCountry "ESP"]
[SourceTitle "playchess.com"]
[Source "ChessBase"]
[SourceQuality "1"]
[TimeControl "5400+30"]

1. Nf3 {[%emt 0:02:06]} d5 {[%emt 0:00:00]} 2. d4 {[%emt 0:00:05]} Nc6 {[%emt 0:00:00]} 3. Bf4 {[%emt 0:00:33]} Nf6 {[%emt 0:01:28]} 4. e3 {[%emt 0:00:11]} Bf5 {[%emt 0:06:43]} 5. c4 {[%emt 0:01:44]} e6 {[%emt 0:03:22]} 6. a3 {[%emt 0:01:17]} Bd6 {[%emt 0:04:56]} 7. Bg5 {[%emt 0:00:12]} h6 {[%emt 0:07:27]} 8. Bh4 {[%emt 0:00:19]} g5 {[%emt 0:02:39]} 9. Bg3 {[%emt 0:00:06]} Ne4 {[%emt 0:10:50]} 10. cxd5 {[%emt 0:01:42]} exd5 {[%emt 0:00:27]} 11. Nc3 {[%emt 0:01:16]} Bxg3 {[%emt 0:05:27]} 12. hxg3 {[%emt 0:00:18]} Qd6 {[%emt 0:05:18]} 13. Bb5 {[%emt 0:09:57]} Ke7 {[%emt 0:17:56]} 14. Rc1 {[%emt 0:04:14]} Nd8 {[%emt 0:06:03]} 15. Bd3 {[%emt 0:03:25]} Nxc3 {[%emt 0:03:23]} 16. Rxc3 {[%emt 0:00:29]} Bxd3 {[%emt 0:00:00]} 17. Qxd3 {[%emt 0:03:51]} Ne6 18. O-O {[%emt 0:04:53]} Raf8 19. e4 {[%emt 0:08:14]} c6 {[%emt 0:05:04]} 20. Re1 {[%emt 0:00:00]} Kd8 21. b4 {[%emt 0:00:00]} a6 {[%emt 0:01:08]} 1-0

[Event "XXI Torredembarra Open 2019"]
[Site "Torredembarra"]
[Date "2019.07.08"]
[Round "3.6"]
[White "Stokes, Paul C"]
[Black "Gonzalez Rodriguez, Jorge A."]
[Result "0-1"]
[ECO "E01"]
[WhiteElo "1809"]
[BlackElo "2201"]
[Annotator "RC"]
[PlyCount "76"]
[EventDate "2019.07.06"]
[EventType "swiss"]
[EventCountry "ESP"]
[SourceTitle "playchess.com"]
[Source "ChessBase"]
[SourceQuality "1"]
[TimeControl "5400+30"]

1. d4 {[%emt 0:00:00]} Nf6 {[%emt 0:03:50]} 2. c4 {[%emt 0:00:00]} e6 {[%emt 0:00:14]} 3. g3 {[%emt 0:00:00]} d5 {[%emt 0:00:19]} 4. Bg2 {[%emt 0:00:12]} c6 {[%emt 0:00:06]} 5. Nf3 {[%emt 0:00:22]} Nbd7 {[%emt 0:00:28]} 6. O-O {[%emt 0:00:35]} Ne4 {[%emt 0:01:01]} 7. Qc2 {[%emt 0:01:38]} f5 {[%emt 0:00:06]} 8. Ne1 {[%emt 0:02:50]} Bd6 {[%emt 0:00:31]} 9. cxd5 {[%emt 0:05:44]} exd5 {[%emt 0:00:15]} 10. Nc3 {[%emt 0:00:30]} O-O {[%emt 0:00:09]} 11. Nxe4 {[%emt 0:01:48]} fxe4 {[%emt 0:00:15]} 12. f3 {[%emt 0:01:12]} exf3 {[%emt 0:01:21]} 13. Nxf3 {[%emt 0:02:43]} Nf6 {[%emt 0:01:26]} 14. Bg5 {[%emt 0:01:15]} Qb6 {[%emt 0:10:12]} 15. Bxf6 {[%emt 0:10:18]} Rxf6 {[%emt 0:01:49]} 16. a3 {[%emt 0:07:28]} Bf5 {[%emt 0:00:27]} 17. Qd2 {[%emt 0:00:11]} Be4 {[%emt 0:03:26]} 18. Ng5 {[%emt 0:04:01]} Bxg2 {[%emt 0:02:59]} 19. Kxg2 {[%emt 0:01:37]} Be7 {[%emt 0:02:30]} 20. Nf3 {[%emt 0:04:06]} Re6 {[%emt 0:02:22]} 21. Rf2 {[%emt 0:09:35]} Bf6 {[%emt 0:00:26]} 22. Raf1 {[%emt 0:00:38]} Rae8 {[%emt 0:00:17]} 23. Ne5 {[%emt 0:03:02]} Bxe5 {[%emt 0:08:54]} 24. dxe5 {[%emt 0:00:04]} Qc7 {[%emt 0:03:45]} 25. Qf4 {[%emt 0:04:06]} h6 {[%emt 0:04:31]} 26. Qf7+ {[%emt 0:04:39]} Qxf7 {[%emt 0:00:30]} 27. Rxf7 {[%emt 0:00:30]} R8e7 {[%emt 0:00:30]} 28. Rf8+ {[%emt 0:00:30]} Kh7 {[%emt 0:00:30]} 29. Ra8 {[%emt 0:00:30]} a6 {[%emt 0:00:30]} 30. Rf2 {[%emt 0:00:30]} Rxe5 {[%emt 0:00:30]} 31. Kf1 {[%emt 0:00:30]} Kg6 {[%emt 0:00:30]} 32. Rb8 {[%emt 0:00:30]} Rf5 {[%emt 0:00:30]} 33. Rxf5 {[%emt 0:00:30]} Kxf5 {[%emt 0:00:30]} 34. Kf2 {[%emt 0:00:30]} Ke5 {[%emt 0:00:30]} 35. Rf8 {[%emt 0:00:30]} Kd6 {[%emt 0:00:30]} 36. Rf4 {[%emt 0:00:30]} Kc5 {[%emt 0:00:30]} 37. Ke1 {[%emt 0:00:30]} a5 {[%emt 0:00:30]} 38. Kd2 {[%emt 0:00:30]} Kb5 {[%emt 0:00:30]} 0-1

[Event "XXI Torredembarra Open 2019"]
[Site "Torredembarra"]
[Date "2019.07.08"]
[Round "3.7"]
[White "Mateos Rozas, Miguel Angel"]
[Black "Usov, Aleksandr E."]
[Result "1-0"]
[ECO "B15"]
[WhiteElo "2194"]
[BlackElo "1809"]
[Annotator "RC"]
[PlyCount "46"]
[EventDate "2019.07.06"]
[EventType "swiss"]
[EventCountry "ESP"]
[SourceTitle "playchess.com"]
[Source "ChessBase"]
[SourceQuality "1"]
[TimeControl "5400+30"]

1. e4 {[%emt 0:00:00]} c6 {[%emt 0:00:00]} 2. d4 {[%emt 0:00:43]} d5 {[%emt 0:00:00]} 3. Nc3 {[%emt 0:00:37]} dxe4 {[%emt 0:00:13]} 4. Nxe4 {[%emt 0:00:10]} Nf6 {[%emt 0:01:50]} 5. Nxf6+ {[%emt 0:00:49]} exf6 {[%emt 0:00:38]} 6. c3 {[%emt 0:01:26]} Bd6 {[%emt 0:00:16]} 7. Bd3 {[%emt 0:00:45]} O-O {[%emt 0:00:04]} 8. Qc2 {[%emt 0:00:26]} Re8+ {[%emt 0:00:13]} 9. Ne2 {[%emt 0:00:14]} h5 {[%emt 0:01:55]} 10. O-O {[%emt 0:10:44]} Qc7 {[%emt 0:01:00]} 11. h3 {[%emt 0:04:07]} Nd7 {[%emt 0:12:42]} 12. Bd2 {[%emt 0:03:37]} Nf8 {[%emt 0:02:29]} 13. Rae1 {[%emt 0:49:16]} Be6 {[%emt 0:11:14]} 14. f4 f5 {[%emt 0:47:57]} 15. Bxf5 {[%emt 0:00:00]} Bxf5 {[%emt 0:00:30]} 16. Qxf5 {[%emt 0:00:00]} g6 {[%emt 0:00:30]} 17. Qd3 {[%emt 0:00:00]} f5 {[%emt 0:00:30]} 18. Qf3 {[%emt 0:00:00]} a5 {[%emt 0:00:30]} 19. Nc1 {[%emt 0:00:00]} a4 {[%emt 0:00:30]} 20. Nd3 {[%emt 0:00:00]} Qf7 {[%emt 0:09:08]} 21. a3 {[%emt 0:00:00]} Qb3 {[%emt 0:00:30]} 22. Bc1 {[%emt 0:00:00]} Qd5 {[%emt 0:04:07]} 23. Qg3 {[%emt 0:11:32]} c5 {[%emt 0:00:52]} 1-0

[Event "XXI Torredembarra Open 2019"]
[Site "Torredembarra"]
[Date "2019.07.08"]
[Round "3.8"]
[White "Beltran Reverter, Josep M."]
[Black "Iagar, Razvan-Gabriel"]
[Result "0-1"]
[ECO "D15"]
[WhiteElo "1776"]
[BlackElo "2138"]
[Annotator "NA"]
[PlyCount "59"]
[EventDate "2019.07.06"]
[EventType "swiss"]
[EventCountry "ESP"]
[SourceTitle "playchess.com"]
[Source "ChessBase"]
[SourceQuality "1"]
[TimeControl "5400+30"]

1. d4 {[%emt 0:00:00]} d5 {[%emt 0:00:00]} 2. c4 {[%emt 0:00:20]} c6 {[%emt 0:00:00]} 3. Nf3 {[%emt 0:00:36]} Nf6 {[%emt 0:00:00]} 4. Nc3 {[%emt 0:00:28]} a6 {[%emt 0:01:10]} 5. e3 {[%emt 0:01:25]} Bf5 {[%emt 0:01:19]} 6. Qb3 {[%emt 0:01:28]} Ra7 {[%emt 0:00:37]} 7. Ne5 {[%emt 0:03:46]} e6 {[%emt 0:01:56]} 8. Be2 {[%emt 0:05:21]} h6 {[%emt 0:01:27]} 9. Bd2 {[%emt 0:01:50]} Nbd7 {[%emt 0:00:20]} 10. cxd5 {[%emt 0:00:03]} exd5 {[%emt 0:04:59]} 11. O-O {[%emt 0:06:15]} Qb6 {[%emt 0:09:00]} 12. Qxb6 {[%emt 0:09:16]} Nxb6 {[%emt 0:00:02]} 13. a3 {[%emt 0:02:00]} Ra8 {[%emt 0:01:19]} 14. Rac1 {[%emt 0:00:18]} Be7 {[%emt 0:01:17]} 15. Bd3 {[%emt 0:02:00]} Bxd3 {[%emt 0:00:16]} 16. Nxd3 {[%emt 0:00:03]} Nc4 {[%emt 0:01:50]} 17. Rfd1 {[%emt 0:03:00]} O-O {[%emt 0:01:46]} 18. Be1 {[%emt 0:02:01]} Rfe8 {[%emt 0:02:50]} 19. a4 {[%emt 0:03:03]} Nd7 {[%emt 0:05:39]} 20. e4 {[%emt 0:00:33]} dxe4 {[%emt 0:01:23]} 21. Nxe4 {[%emt 0:00:05]} Nd6 {[%emt 0:05:10]} 22. Nxd6 {[%emt 0:06:48]} Bxd6 {[%emt 0:00:03]} 23. Nc5 {[%emt 0:01:31]} Nxc5 {[%emt 0:02:38]} 24. dxc5 Bf4 25. Rc4 Bg5 26. Bc3 Rad8 27. Rxd8 Rxd8 28. h4 Be7 29. Rg4 f6 {[%emt 0:04:02]} 30. Rd4 {[%emt 0:02:00]} 0-1

[Event "XXI Torredembarra Open 2019"]
[Site "Torredembarra"]
[Date "2019.07.08"]
[Round "3.9"]
[White "Dosaiguas Bonne, Jaime Jose"]
[Black "Galimany Rovira, Xavier"]
[Result "0-1"]
[ECO "B50"]
[WhiteElo "1598"]
[BlackElo "2086"]
[Annotator "NA RC"]
[PlyCount "52"]
[EventDate "2019.07.06"]
[EventType "swiss"]
[EventCountry "ESP"]
[SourceTitle "playchess.com"]
[Source "ChessBase"]
[SourceQuality "1"]
[TimeControl "5400+30"]

1. e4 {[%emt 0:00:00]} c5 {[%emt 0:00:00]} 2. Nf3 {[%emt 0:00:00]} d6 {[%emt 0:00:00]} 3. Bc4 {[%emt 0:00:11]} Nf6 {[%emt 0:00:23]} 4. d3 {[%emt 0:00:23]} Nc6 {[%emt 0:01:09]} 5. a3 {[%emt 0:01:23]} e6 {[%emt 0:00:25]} 6. Bg5 {[%emt 0:00:19]} Be7 {[%emt 0:00:37]} 7. Nbd2 {[%emt 0:00:43]} O-O {[%emt 0:01:47]} 8. O-O {[%emt 0:00:31]} Rb8 {[%emt 0:01:58]} 9. Re1 {[%emt 0:00:21]} b5 {[%emt 0:01:55]} 10. Ba2 {[%emt 0:00:17]} a5 {[%emt 0:03:23]} 11. Rc1 {[%emt 0:00:19]} Bd7 {[%emt 0:06:01]} 12. Nf1 {[%emt 0:02:36]} a4 {[%emt 0:03:33]} 13. d4 {[%emt 0:04:53]} cxd4 {[%emt 0:03:59]} 14. Nxd4 {[%emt 0:00:56]} b4 {[%emt 0:03:13]} 15. Nxc6 {[%emt 0:05:28]} Bxc6 {[%emt 0:00:34]} 16. Nd2 {[%emt 0:00:22]} bxa3 {[%emt 0:10:22]} 17. bxa3 {[%emt 0:01:06]} Qc7 {[%emt 0:02:57]} 18. Re3 {[%emt 0:00:00]} Rfd8 {[%emt 0:04:01]} 19. Qe2 {[%emt 0:00:23]} d5 {[%emt 0:05:50]} 20. e5 {[%emt 0:00:45]} Ne4 {[%emt 0:04:01]} 21. Bxe7 {[%emt 0:00:19]} Qxe7 {[%emt 0:00:19]} 22. Nxe4 {[%emt 0:00:22]} dxe4 {[%emt 0:00:06]} 23. c4 {[%emt 0:02:34]} Qg5 {[%emt 0:01:12]} 24. Rc2 {[%emt 0:02:16]} Qxe5 {[%emt 0:04:03]} 25. Rec3 {[%emt 0:01:33]} Qd4 {[%emt 0:05:07]} 26. h3 {[%emt 0:00:59]} Kf8 {[%emt 0:02:14]} 0-1